Workbook

Sheet Input
A1: Paese | B1: Italia
A2: Progetto | B2: nome
A3: Valuta | B3: Euro
A4: Tipo società | B4: Capitale
A5: Tabella | B5: Business Plan
A6: Data | B6: 2018-05-30
A7: Autori | B7: Gruppo 6
A10: CONTO ECONOMICO | M10: STATO PATRIMONIALE
A11: COSTI | B11: 2018 | C11: 2019 | D11: 2020 | E11: Dilaz. Pag. debiti | G11: RICAVI | H11: 2018 | I11: 2019 | J11: 2020 | K11: Dilazione pagamento crediti | M11: IMPIEGHI | N11: 2018 | O11: 2019 | P11: 2020 | R11: FONTI | S11: 2018 | T11: 2019 | U11: 2020
M12: Capitale Circolante Attivo | R12: Patrimonio Netto
A13: Costi Personale | G13: Ricavi Exchange | M13: Crediti commerciali | N13: 0 | O13: 0 | P13: 0 | R13: Capitale Sociale | S13: 100000 | T13: 100000 | U13: 100000
A14: Amministratore | B14: 24000 | C14: 24000 | D14: 24000 | G14: Deposito | H14: 0 | I14: 0 | J14: 0 | M14: Disponibilità Liquida | N14: 10000 | O14: 5000 | P14: 10000 | R14: Versamento Soci | S14: 10000 | T14: 0 | U14: 5000
A15: Impiegati | B15: 156000 | C15: 156000 | D15: 156000 | G15: Transazione EUR/CRYPTO | H15: 50000 | I15: 75000 | J15: 40000 | M15: Altri Crediti | N15: 0 | O15: 0 | P15: 0 | R15: TOTALE Patrimonio Netto | S15: =SUM(S13:S14) -> 110000 | T15: =SUM(T13:T14) -> 100000 | U15: 105000
A16: Vigilanza | B16: 36000 | C16: 36000 | D16: 36000 | G16: Transazione CRYPTO/EUR | H16: 70000 | I16: 75000 | J16: 40000 | M16: TOTALE. CCA | N16: =SUM(N13:N15) -> 10000 | O16: =SUM(O13:O15) -> 5000 | P16: 10000
A17: Pulizie | B17: 30000 | C17: 30000 | D17: 30000 | G17: Transazione CRYPTO/CRYPTO | H17: 90000 | I17: 95000 | J17: 40000 | R17: Fondi oneri e rischi | S17: 1000 | T17: 1000 | U17: 1000
A18: TOTALE Costi Personale | B18: =SUM(B14:B17) -> 246000 | C18: 246000 | D18: 246000 | G18: TOTALE Ricavi Exchange | H18: =SUM(H14:H17) -> 210000 | I18: 245000 | J18: 120000
A20: Servizio Exchange | G20: Ricavi Consulenza | M20: AMMORTAMENTI | N20: Investimenti (al netto dell'IVA) | O20: % di amm. | P20: Q. Amm. | Q20: FA - 2018 | R20: FA- 2019 | S20: FA - 2020 | T20: TOT. Fondo Amm.
A21: Costo sito | B21: 5000 | C21: 0 | D21: 100 | G21: Fatturato di consulenza | H21: 250000 | I21: 150000 | J21: 775500 | M21: Imm. Materiali
A22: Dominio | B22: 1000 | C22: 1000 | D22: 1000 | G22: Interessi attivi da trading | H22: 50000 | I22: 20000 | J22: 10000 | M22: Sede | N22: 10000 | O22: 0.05 | P22: =O22*N22 -> 500 | Q22: =P22 -> 500 | R22: =P22*2 -> 1000 | S22: =P22*3 -> 1500 | T22: =SUM(Q22,R22,S22) -> 3000
A23: Copyright e Marchi | B23: 1000 | C23: 100 | D23: 100 | G23: Altri ricavi | H23: 0 | I23: 0 | J23: 0 | M23: Costi per ufficio | N23: 5000 | O23: 0.2 | P23: =O23*N23 -> 1000 | Q23: =P23 -> 1000 | R23: =P23*2 -> 2000 | S23: =P23*3 -> 3000 | T23: =SUM(Q23,R23,S23) -> 6000
A24: TOTALE Servizio Exchange | B24: =SUM(B21:B23) -> 7000 | C24: 1100 | D24: 1200 | G24: TOTALE Ricavi Consulenza | H24: =SUM(H21:H23) -> 300000 | I24: 170000 | J24: 785500 | M24: Arredamenti | N24: 5000 | O24: 0.1 | P24: =O24*N24 -> 500 | Q24: =P24 -> 500 | R24: =P24*2 -> 1000 | S24: =P24*3 -> 1500 | T24: =SUM(Q24,R24,S24) -> 3000
G25: TOTALE Ricavi Operativi | H25: =SUM(H18,H24) -> 510000 | I25: =SUM(I18,I24) -> 415000 | J25: =SUM(J18,J24) -> 905500
A26: Costi Vari
A27: Corsi aggiornamento | B27: 500 | C27: 0 | D27: 500 | M27: Imm. Immateriali.
A28: Bollette | B28: 100 | C28: 100 | D28: 100 | M28: Software | N28: 500 | O28: 0.4 | P28: =O28*N28 -> 200 | Q28: =P28 -> 200 | R28: =P28*2 -> 400 | S28: =P28*3 -> 600 | T28: =SUM(Q28,R28,S28) -> 1200
A29: Strumenti di cancelleria | B29: 1000 | C29: 100 | D29: 100 | P29: =O29*N29 -> 0
A30: Costi per i servizi | B30: 1000 | C30: 500 | D30: 500 | M30: Imm. Fin | N30: 0 | O30: 0 | P30: 0 | Q30: =P30 -> 0 | R30: =P30*2 -> 0 | S30: =P30*3 -> 0 | T30: =SUM(Q30,R30,S30) -> 0
A31: Accantonamenti per rischi | B31: 500 | C31: 500 | D31: 500
A32: Servizi per il personale | B32: 1000 | C32: 500 | D32: 500
A33: Oneri diversi | B33: 0 | C33: 0 | D33: 0
A34: Server | B34: 0 | C34: 0 | D34: 0
A35: TOTALE Costi Vari | B35: =SUM(B27:B34) -> 4100 | C35: 1700 | D35: 2200
A36: TOTALE Costi Operativi | B36: =SUM(B18,B24,B35) -> 257100 | C36: =SUM(C18,C24,C35) -> 248800 | D36: =SUM(D18,D24,D35) -> 249400
A39: DEBITI E TASSI
A40: Debito m/l termine (banca) | B40: 200000 | C40: - | D40: -
A41: Tasso di Interesse m/l termine | B41: 0.05 | C41: 0.05 | D41: 0.05 | E41: 120
A42: Debito b termine | B42: -77344.95131 | C42: 105382.122 | D42: -146300
A43: Tasso di Interesse b termine (RF) | B43: 0.07 | C43: 0.07 | D43: 0.07 | E43: 30
A44: % Imposte dell'esercizio (Tasse) | B44: 0.3 | C44: 0.3 | D44: 0.3 | E44: 120
A45: % Dividendi | B45: 0.35 | C45: 0.35 | D45: 0.35

Sheet Conto Economico
A1: Paese | B1: Italia
A2: Progetto | B2: nome
A3: Valuta | B3: Euro
A4: Tipo società | B4: Capitale
A5: Tabella | B5: Conto Economico
A6: Data | B6: 2018-05-30
A7: Autori | B7: Gruppo 6
A9: CONTO ECONOMICO
A10: COSTI | B10: 2018 | C10: 2019 | D10: 2020 | G10: RICAVI | H10: 2018 | I10: 2019 | J10: 2020
A12: Costi Personale | B12: =Input!B18 -> 246000 | C12: =Input!C18 -> 246000 | D12: =Input!D18 -> 246000 | G12: Ricavi Exchange | H12: =Input!H18 -> 210000 | I12: =Input!I18 -> 245000 | J12: =Input!J18 -> 120000
A14: Servizio Exchange | B14: =Input!B24 -> 7000 | C14: =Input!C24 -> 1100 | D14: =Input!D24 -> 1200 | G14: Ricavi Consulenza | H14: =Input!H24 -> 300000 | I14: =Input!I24 -> 170000 | J14: =Input!J24 -> 785500
A16: Costi Vari | B16: =Input!B35 -> 4100 | C16: =Input!C35 -> 1700 | D16: =Input!D35 -> 2200
A18: TOTALE: | B18: =SUM(B12,B14,B16) -> 257100 | C18: =SUM(C12,C14,C16) -> 248800 | D18: 249400 | H18: =SUM(H12,H14) -> 510000 | I18: =SUM(I12,I14) -> 415000 | J18: 905500
A20: MARGINE OPERATIVO LORDO | B20: =H18-B18 -> 252900 | C20: =I18-C18 -> 166200 | D20: 656100
A22: Ammortamenti | B22: =SUM(Input!Q22:Q28) -> 2200 | C22: =SUM(Input!R22:R28) -> 4400 | D22: =SUM(Input!S22:S28) -> 6600
A24: RISULTATO OPERATIVO | B24: =B20-B22 -> 250700 | C24: =C20-C22 -> 161800 | D24: 649500
A26: Oneri e Proventi Finanziari | B26: =SUM('Stato Patrimoniale'!M15,'Stato Patrimoniale'!M24) -> 10457.0733 | C26: =SUM('Stato Patrimoniale'!N15,'Stato Patrimoniale'!N24) -> 6938.37427 | D26: =SUM('Stato Patrimoniale'!O15,'Stato Patrimoniale'!O24) -> 5620.5
A28: RISULTATO ANTE IMPOSTE | B28: =B24-B26 -> 240242.9267 | C28: =C24-C26 -> 154861.6257 | D28: =D24-D26 -> 643879.5
A30: Imposte dell'esercizio (Tasse) | B30: =IF(B28 > 0,Input!$B$44*B28,0) -> 72072.87801 | C30: =IF(SUM(B28:C28) > 0,Input!$B$44*SUM(B28:C28),0) -> 118531.3657 | D30: =IF(SUM(C28:D28) > 0,Input!$B$44*SUM(C28:D28),0) -> 239622.3377
A32: RISULTATO NETTO: | B32: =B28-B30 -> 168170.0487 | C32: =C28-C30 -> 36330.26 | D32: 404257.1623

Sheet Stato Patrimoniale
A1: Paese | B1: Italia
A2: Progetto | B2: nome
A3: Valuta | B3: Euro
A4: Società | B4: Capitale
A5: Tabella | B5: Stato Patrimoniale
A6: Data | B6: 2018-05-30
A7: Autori | B7: Gruppo 6
A10: STATO PATRIMONIALE
A11: IMPIEGHI | B11: 2018 | C11: 2019 | D11: 2020 | F11: FONTI | G11: 2018 | H11: 2019 | I11: 2020 | K11: DEBITI M/L TERMINE | L11: Importo Rata | M11: 2018 | N11: 2019 | O11: 2020
A12: Capitale Fisso | F12: Patrimonio Netto | K12: Verso istituti di credito | L12: 30000 | M12: =IF((Input!$B$40-(360/Input!$E$41*$L$12)) < 0,0,(Input!$B$40-(360/Input!$E$41*$L$12))) -> 110000 | N12: =IF((M12-(360/Input!$E$41*$L$12)) < 0,0,(M12-(360/Input!$E$41*$L$12))) -> 20000 | O12: =IF((N12-(360/Input!$E$41*$L$12)) < 0,0,(N12-(360/Input!$E$41*$L$12))) -> 0
A13: Investimenti | F13: Capitale Sociale | G13: =Input!S13 -> 100000 | H13: =Input!T13 -> 100000 | I13: =Input!U13 -> 100000 | K13: Totale Debiti m/l termine | L13: 30000 | M13: =SUM(M12) -> 110000 | N13: =SUM(N12) -> 20000 | O13: 0
F14: Versamento Soci c/cap | G14: =Input!S14 -> 10000 | H14: =Input!T14 -> 0 | I14: =Input!U14 -> 5000 | K14: (Media) debiti a b termine | L14: - | M14: =(Input!B40+'Stato Patrimoniale'!M13)/2 -> 155000 | N14: =(M13+'Stato Patrimoniale'!N13)/2 -> 65000 | O14: =(N13+'Stato Patrimoniale'!O13)/2 -> 10000
A15: Imm. Materiali | B15: =SUM(Input!N22:N25) -> 20000 | C15: =IF((B15-SUM(Input!Q22:Q25)) < 0,0,(B15-SUM(Input!Q22:Q25))) -> 18000 | D15: =IF((C15-SUM(Input!R22:R25)) < 0,0,(C15-SUM(Input!R22:R25))) -> 14000 | F15: Risultato netto | G15: ='Conto Economico'!B32 -> 168170.0487 | H15: ='Conto Economico'!C32 -> 36330.26 | I15: ='Conto Economico'!D32 -> 404257.1623 | K15: Oneri finanziari a m/l termine | L15: - | M15: =Input!B41*M14 -> 7750 | N15: =Input!C41*N14 -> 3250 | O15: =Input!D41*O14 -> 500
F16: Utili a nuovo (dividendi) | G16: =IF('Conto Economico'!B20 >0,'Conto Economico'!B20 * Input!B45,0) -> 88515 | H16: =IF('Conto Economico'!C20 >0,'Conto Economico'!C20 * Input!C45,0) -> 58170 | I16: =IF('Conto Economico'!D20 >0,'Conto Economico'!D20 * Input!D45,0) -> 229635
F17: Utile/Perdita d'esercizio | G17: =SUM(G14,G15)-G16 -> 89655.04869 | H17: =SUM(H14,H15)-H16 -> -21839.74 | I17: 179622.1623
A18: Imm. Immateriali | B18: =SUM(Input!N28) -> 500 | C18: =IF((B18-Input!Q28) < 0,B18,(B18-Input!Q28)) -> 300 | D18: =IF((C18-Input!R28) < 0,0,(C18-Input!R28)) -> 0 | F18: TOT. Patrimonio Netto | G18: =SUM(G13:G17) -> 456340.0974 | H18: =SUM(H13:H17) -> 172660.52 | I18: =SUM(I13:I17) -> 918514.3246
A20: Inv. Finanziari | B20: =SUM(Input!N30) -> 0 | C20: =IF(B20-Input!Q30 < 0,0,B20-Input!Q30) -> 0 | D20: =IF(C20-Input!R30 < 0,0,C20-Input!R30) -> 0 | F20: Fondi oneri e rischi | G20: =Input!S17 -> 1000 | H20: =Input!T17 -> 1000 | I20: =Input!U17 -> 1000 | K20: DEBITI B/ TERMINE | L20: Importo Rata | M20: 2018 | N20: 2019 | O20: 2020
K21: Verso terzi | L21: 0 | M21: =G25 -> 77344.95131 | N21: =H25 -> 105382.122 | O21: 146300
A22: TOT. Capitale Fisso | B22: =SUM(B15,B18,B20) -> 20500 | C22: =SUM(C15,C18,C20) -> 18300 | D22: =SUM(D15,D18,D20) -> 14000 | F22: Capitale Circolante Passivo | K22: Totale Debiti b termine | L22: 0 | M22: =M21 -> 77344.95131 | N22: =N21 -> 105382.122 | O22: 146300
K23: (Media) debiti a b termine | L23: - | M23: =M21/2 -> 38672.47565 | N23: =N21/2 -> 52691.06099 | O23: 73150
A24: Capitale Circolante Attivo | F24: Debiti m/l termine | G24: =M13 -> 110000 | H24: =N13 -> 20000 | I24: =O13 -> 0 | K24: Oneri Finanziari a b termine | L24: - | M24: =Input!B43*'Stato Patrimoniale'!M23 -> 2707.073296 | N24: =Input!C43*'Stato Patrimoniale'!N23 -> 3688.37427 | O24: =Input!D43*'Stato Patrimoniale'!O23 -> 5120.5
A25: Crediti commerciali | B25: =Input!N13 -> 0 | C25: =Input!O13 -> 0 | D25: =Input!P13 -> 0 | F25: Debiti b termine | G25: =IF(Input!B42 < 0,-Input!B42,Input!B42) -> 77344.95131 | H25: =IF(Input!C42 < 0,-Input!C42,Input!C42) -> 105382.122 | I25: =IF(Input!D42 < 0,-Input!D42,Input!D42) -> 146300
A26: Altri Crediti | B26: =Input!N15 -> 0 | C26: =Input!O15 -> 0 | D26: =Input!P15 -> 0 | F26: Fondo Ammortamenti | G26: =SUM(Input!Q22:Q24,Input!Q28,Input!Q30) -> 2200 | H26: =SUM(Input!R22:R24,Input!R28,Input!R30) -> 4400 | I26: =SUM(Input!S22:S24,Input!S28,Input!S30) -> 6600
A27: Disponibilità Liquida | B27: =Input!N14 -> 10000 | C27: =Input!O14 -> 5000 | D27: =Input!P14 -> 10000 | F27: Altri debiti | G27: 0 | H27: 0 | I27: 0
F28: TOT. CCP | G28: =SUM(G25:G27) -> 79544.95131 | H28: =SUM(H25:H27) -> 109782.122 | I28: 152900
A29: TOT. CCA | B29: =SUM(B27) -> 10000 | C29: =SUM(C27) -> 5000 | D29: 10000 | F29: Totale Passivo | G29: =SUM(G18,G20+G28) -> 536885.0487 | H29: =SUM(H18,H20+H28) -> 283442.642 | I29: =SUM(I18,I20+I28) -> 1072414.325
A31: Totale Attivo | B31: =SUM(B29,B22) -> 30500 | C31: =SUM(C29,C22) -> 23300 | D31: =SUM(D29,D22) -> 24000
A32: CCN | B32: =B29-G28 -> -69544.95131 | C32: =C29-H28 -> -104782.122 | D32: =D29-I28 -> -142900

Sheet Rendiconto Finanziario
A1: Paese | B1: Italia
A2: Progetto | B2: nome
A3: Valuta | B3: Euro
A4: Società | B4: Capitale
A5: Tabella | B5: Business Plan
A6: Data | B6: 2018-05-30
A7: Autori | B7: Gruppo 6
A10: RENDICONTO FINANZIARIO | B10: 2018 | C10: 2019 | D10: 2020
A12: Risultato Netto | B12: ='Conto Economico'!B32 -> 168170.0487 | C12: ='Conto Economico'!C32 -> 36330.26 | D12: ='Conto Economico'!D32 -> 404257.1623
A13: Ammortamento | B13: =SUM(Input!Q22:Q24,Input!Q28,Input!Q30) -> 2200 | C13: =SUM(Input!R22:R24,Input!R28,Input!R30) -> 4400 | D13: =SUM(Input!S22:S24,Input!S28,Input!S30) -> 6600
A14: Autofinanziamento | B14: =SUM(B12:B13) -> 170370.0487 | C14: =SUM(C12:C13) -> 40730.26 | D14: 410857.1623
A16: Variazione CCN | B16: ='Stato Patrimoniale'!B32 -> -69544.95131 | C16: ='Stato Patrimoniale'!B32-'Stato Patrimoniale'!C32 -> 35237.17068 | D16: ='Stato Patrimoniale'!C32-'Stato Patrimoniale'!D32 -> 38117.87801
A17: Investimenti | B17: =SUM('Stato Patrimoniale'!B22) -> 20500 | C17: =SUM('Stato Patrimoniale'!C22) -> 18300 | D17: =SUM('Stato Patrimoniale'!D22) -> 14000
A18: Disinvestimenti | B18: 0 | C18: 0 | D18: 0
A19: Cash Flow Operativo | B19: =B14-(B16+B17+B18) -> 219415 | C19: =C14-(C16+C17+C18) -> -12806.91068 | D19: 358739.2843
A21: var. Debiti a m/l termine | B21: =Input!$B$40-'Stato Patrimoniale'!M12 -> 90000 | C21: ='Stato Patrimoniale'!M12-'Stato Patrimoniale'!N12 -> 90000 | D21: ='Stato Patrimoniale'!N12-'Stato Patrimoniale'!O12 -> 20000
A22: var. Patrimonio netto | B22: ='Stato Patrimoniale'!G16 -> 88515 | C22: ='Stato Patrimoniale'!H16 -> 58170 | D22: ='Stato Patrimoniale'!I16 -> 229635
A23: Cash flow Netto | B23: =B19-(B21+B22) -> 40900 | C23: =C19-(C21+C22) -> -160976.9107 | D23: 109104.2843
A25: Debiti a b/ termine | B25: =B23 -> 40900 | C25: =C23 -> -160976.9107 | D25: =D23 -> 109104.2843
